bitfinex/quotes_SOLUSD_20260108
["timestamp","ask_amount","ask_price","bid_price","bid_amount"]
[1767860232067,11.33186397,136.05,136.01,0.71319468]
[1767860232252,11.23286397,136.05,136.01,0.71319468]
[1767860232456,7.35023888,136.05,136.01,0.71319468]
[1767860233542,11.23286397,136.05,136.01,0.71319468]
[1767860234267,4.28210592,136.04,136.0,0.71319468]
[1767860234453,7.34941485,136.07,136.03,0.71319468]
[1767860234658,0.099,136.07,136.03,0.71319468]
[1767860234964,7.75133363,136.08,136.04,0.71319468]
[1767860236182,11.63395872,136.08,136.04,0.71319468]
[1767860237278,17.28262509,136.09,136.05,0.71319468]
[1767860237456,7.34785839,136.1,136.07,0.71319468]
[1767860237769,7.34785839,136.1,136.08,0.71319468]
[1767860238157,7.34785839,136.1,136.08,0.65319468]
[1767860239168,7.44722195,136.11,136.08,0.65319468]
[1767860239676,7.44722195,136.11,136.08,0.59319468]
[1767860240553,7.96550278,136.11,136.06,3.88262509]
[1767860240873,11.32984704,136.11,136.06,3.88262509]
[1767860241079,7.44722195,136.11,136.07,3.88262509]
[1767860241455,7.44722195,136.11,136.05,7.35007541]
[1767860241650,7.44722195,136.11,136.07,0.71319468]
[1767860241851,11.32984704,136.11,136.07,0.71319468]
[1767860242052,11.85236303,136.11,136.07,0.71319468]
[1767860243180,7.96973794,136.11,136.07,0.71319468]
[1767860243371,11.85236303,136.11,136.07,0.71319468]
[1767860245381,3.98162509,136.1,136.07,0.71319468]
[1767860245576,3.98162509,136.1,136.06,0.71319468]
[1767860246688,0.099,136.1,136.06,0.71319468]
[1767860246994,3.88262509,136.1,136.06,0.71319468]
[1767860247489,11.32984704,136.11,136.06,0.71319468]
[1767860248394,11.84812787,136.11,136.06,0.71319468]
[1767860250496,3.98581789,136.1,136.06,0.71319468]
[1767860251000,0.1,136.11,136.07,0.71319468]
[1767860251892,11.32968107,136.11,136.07,0.71319468]
[1767860252081,4.40090592,136.1,136.06,0.66741287]
[1767860252468,3.88262509,136.09,136.06,0.66741287]
[1767860253696,0.51828083,136.1,136.06,0.66741287]
[1767860253888,3.88262509,136.09,136.06,0.66741287]
[1767860254094,11.74850609,136.1,136.06,0.66741287]
[1767860255693,7.865881,136.1,136.06,0.66741287]
[1767860256000,11.74850609,136.1,136.06,0.66741287]
[1767860257392,7.44719269,136.11,136.07,0.66741287]
[1767860257591,11.32981778,136.11,136.07,0.66741287]
[1767860258790,11.42881778,136.11,136.07,0.66741287]
[1767860259689,4.08162509,136.11,136.07,0.66741287]
[1767860259893,0.1,136.11,136.08,0.66741287]
[1767860260413,0.1,136.11,136.08,0.60741289]
[1767860262083,3.98262509,136.11,136.08,0.60741289]
[1767860262283,4.50149992,136.11,136.06,11.2321366]
[1767860262483,3.88262509,136.1,136.07,0.66741287]
[1767860262984,4.39793122,136.09,136.05,0.66741287]
[1767860263189,3.88262509,136.09,136.05,0.66741287]
[1767860263775,3.98162509,136.09,136.05,0.66741287]
[1767860263981,7.34861845,136.08,136.05,0.66741287]
[1767860264289,7.3483315,136.09,136.05,0.66741287]
[1767860264491,11.23095659,136.09,136.05,0.66741287]
[1767860264688,7.3483315,136.09,136.05,0.66741287]
[1767860265084,13.5,136.11,136.08,0.66741287]
[1767860265287,0.1,136.11,136.08,0.60741293]
[1767860267928,0.1,136.11,136.08,0.54741293]
[1767860268610,0.1,136.11,136.08,7.3486167]
[1767860269106,0.1,136.11,136.07,11.23146942]
[1767860269684,0.1,136.11,136.08,7.34859452]
[1767860269885,0.1,136.11,136.09,0.66741287]
[1767860273114,0.1,136.11,136.08,0.66741287]
[1767860274015,0.1,136.11,136.08,0.63587394]
[1767860276211,0.1,136.11,136.09,0.66741287]
[1767860276410,0.1,136.12,136.11,0.66741287]
[1767860276619,0.02691076,136.11,136.1,0.66741287]
[1767860278317,0.02691076,136.11,136.09,0.66741287]
[1767860280031,0.1,136.12,136.09,0.64050211]
[1767860280196,0.1,136.12,136.09,0.58050216]
[1767860280400,0.1,136.12,136.09,13.400498]
[1767860282224,0.1,136.12,136.1,0.70860292]
[1767860283035,0.1,136.12,136.1,8.05613451]
[1767860283207,0.1,136.12,136.11,0.66180352]
[1767860283638,0.1,136.14,136.12,0.66180352]
[1767860283807,0.1,136.14,136.1,7.34753159]
[1767860283808,0.1,136.14,136.11,0.66180352]
[1767860284518,0.65487041,136.13,136.09,0.66180352]
[1767860284729,14.0533925,136.13,136.09,0.66180352]
[1767860284930,8.00096666,136.13,136.09,0.66180352]
[1767860285119,14.0533925,136.13,136.09,0.66180352]
[1767860286137,6.70729625,136.13,136.09,0.66180352]
[1767860286736,0.65487041,136.13,136.1,0.66180352]
[1767860287705,8.00083305,136.13,136.1,0.66180352]
[1767860287913,0.65487041,136.13,136.1,0.66180352]
[1767860288840,0.1,136.14,136.11,0.66180352]
[1767860296649,8.00518118,136.14,136.11,0.66180352]
[1767860296818,14.05760702,136.14,136.11,0.66180352]
[1767860297420,13.49812674,136.14,136.11,0.66180352]
[1767860297637,7.4457009,136.14,136.11,0.66180352]
[1767860297838,13.49812674,136.14,136.11,0.66180352]
[1767860298762,14.05760702,136.14,136.11,0.66180352]
[1767860299151,0.65487041,136.13,136.09,0.66180352]
[1767860301162,0.65487041,136.13,136.1,0.66180352]
[1767860301369,8.10153485,136.14,136.1,0.66180352]
[1767860301678,0.55948028,136.13,136.1,0.66180352]
[1767860302444,8.10153485,136.14,136.1,6.71422936]
[1767860304439,7.9054807,136.13,136.1,0.66180352]
[1767860304739,0.55948028,136.13,136.1,0.66180352]
[1767860304935,0.55948028,136.13,136.1,6.71422936]
[1767860305568,0.55948028,136.13,136.1,0.66180352]
[1767860306666,0.1,136.14,136.11,0.66180352]
[1767860306967,0.1,136.14,136.12,0.66180352]
[1767860307368,0.1,136.14,136.11,6.71422936]
[1767860309069,0.65948028,136.14,136.11,6.71422936]
[1767860309272,0.65948028,136.14,136.11,14.06120937]
[1767860309976,0.1,136.14,136.12,0.66180352]
[1767860310472,15.70789935,136.15,136.13,6.71422936]
[1767860310859,15.70789935,136.15,136.14,6.71422936]
[1767860311175,0.1,136.16,136.14,6.71422936]
[1767860311772,0.1,136.16,136.15,6.71422936]
[1767860313368,0.1,136.16,136.15,0.66180352]
[1767860314775,0.75586041,136.16,136.14,13.39780144]
[1767860315876,0.75586041,136.16,136.15,6.05242584]
[1767860316470,0.1,136.16,136.15,6.05242584]
[1767860316782,0.1,136.16,136.15,6.72418721]
[1767860318070,0.1,136.16,136.15,0.67176137]
[1767860318356,0.72472971,136.18,136.15,6.72418721]
[1767860318559,6.05242584,136.22,136.18,0.67176137]
[1767860318769,6.05242584,136.22,136.18,0.55176137]
[1767860318770,0.72472971,136.21,136.18,0.55176137]
[1767860319158,0.72472971,136.21,136.12,0.28432314]
[1767860319159,0.72457314,136.19,136.12,0.14216157]
[1767860319367,0.72457314,136.19,136.15,6.05242584]
[1767860319572,25.69373072,136.22,136.16,6.05242584]
[1767860319573,6.77715555,136.21,136.16,6.05242584]
[1767860319954,7.3421439,136.2,136.16,6.05242584]
[1767860320172,0.70907348,136.2,136.16,6.05242584]
[1767860320674,6.76149932,136.2,136.15,6.05242584]
[1767860320877,0.70907348,136.2,136.16,0.67176137]
[1767860321460,0.70922848,136.18,136.15,0.67176137]
[1767860321856,0.7093804,136.16,136.13,0.67176137]
[1767860322063,0.72472971,136.17,136.14,0.67176137]
[1767860322284,8.06852794,136.17,136.14,0.67176137]
[1767860322461,0.72472971,136.17,136.14,0.67176137]
[1767860322665,8.06804291,136.18,136.14,0.67176137]
[1767860322871,8.06804291,136.18,136.15,0.67176137]
[1767860323483,0.70907348,136.17,136.14,0.67176137]
[1767860324209,0.70907348,136.17,136.13,0.67176137]
[1767860325082,0.70907348,136.17,136.14,0.67176137]
[1767860327671,8.0529227,136.17,136.14,0.67176137]
[1767860329964,0.70907348,136.17,136.14,0.67176137]
[1767860330169,8.06744478,136.19,136.15,0.67176137]
[1767860330465,0.72472971,136.19,136.15,0.67176137]
[1767860330885,0.70907348,136.18,136.15,0.67176137]
[1767860331789,0.70907348,136.18,136.14,0.67176137]
[1767860332488,0.70907348,136.18,136.14,8.01712557]
[1767860332689,0.70907348,136.18,136.15,0.67176137]
[1767860334096,14.11995013,136.19,136.15,0.67176137]
[1767860334273,8.06752429,136.19,136.15,0.67176137]
[1767860334765,14.11995013,136.19,136.15,0.67176137]
[1767860334972,0.70907348,136.18,136.15,0.67176137]
[1767860336287,0.70922848,136.16,136.13,0.67176137]
[1767860336484,25.69950212,136.19,136.13,0.67176137]
[1767860336485,0.72472971,136.18,136.13,0.67176137]
[1767860336665,6.05242584,136.17,136.13,0.67176137]
[1767860337277,13.39647105,136.17,136.13,0.67176137]
[1767860337990,14.10554453,136.17,136.13,0.67176137]
[1767860338502,11.92496155,136.17,136.13,0.67176137]
[1767860338798,8.05311869,136.17,136.13,0.67176137]
[1767860338984,11.92496155,136.17,136.13,0.67176137]
[1767860340416,0.70922848,136.15,136.1,0.67176137]
[1767860340599,0.72472971,136.15,136.1,0.67176137]
[1767860340899,4.58091634,136.14,136.1,0.67176137]
[1767860341396,4.596416,136.13,136.1,0.67176137]
[1767860341594,4.596416,136.13,136.09,0.67176137]
[1767860342296,4.54405916,136.12,136.08,0.67220206]
[1767860342594,0.6722163,136.11,136.08,0.67220206]
[1767860343170,8.02128343,136.12,136.08,0.67220206]
[1767860343370,11.89312629,136.12,136.08,0.67220206]
[1767860343600,0.67465635,136.11,136.08,0.67220206]
[1767860344788,8.02170148,136.11,136.08,0.67220206]
[1767860345103,0.67465635,136.08,136.02,4.49252611]
[1767860345397,0.67465635,136.06,136.02,0.6600094]
[1767860346303,8.02447072,136.06,136.02,0.6600094]
[1767860346700,11.89631358,136.06,136.02,0.6600094]
[1767860346894,0.67465635,136.05,136.01,0.6600094]
[1767860347270,0.67465635,136.05,136.01,11.8842215]
[1767860347586,0.67465635,136.05,136.01,0.6600094]
[1767860348379,11.89631358,136.06,136.01,0.6600094]
[1767860348583,4.54649921,136.04,136.01,0.6600094]
[1767860351094,8.02529192,136.05,136.01,0.6600094]
[1767860351302,3.87184286,136.04,136.01,0.6600094]
[1767860351779,3.87184286,136.04,136.0,0.8600094]
[1767860351780,4.54649921,136.04,136.0,0.8600094]
[1767860352377,0.67465635,136.02,136.0,0.2]
[1767860352573,3.87184286,136.01,135.95,7.35542536]
[1767860352890,11.22587978,135.98,135.94,0.2]
[1767860353081,3.87184286,135.97,135.94,0.2]
[1767860353279,11.22587978,135.98,135.93,7.35672474]
[1767860353886,11.22587978,135.98,135.93,11.2285676]
[1767860354088,11.22587978,135.98,135.93,7.35672474]
[1767860354494,3.87184286,135.97,135.92,12.0889544]
[1767860354702,3.87184286,135.97,135.92,7.55710214]
[1767860355087,0.67465635,135.96,135.92,7.55710214]
[1767860355289,0.64465633,135.96,135.92,7.55710214]
[1767860355483,0.64465633,135.96,135.92,12.0889544]
[1767860355684,0.61465633,135.96,135.92,12.0889544]
[1767860356176,3.87184286,135.98,135.93,0.6600094]
[1767860356177,11.2260917,135.98,135.93,0.6600094]
[1767860356376,3.87184286,135.96,135.93,0.6600094]
[1767860356610,3.87184286,135.95,135.92,0.8600094]
[1767860356789,18.38605341,135.98,135.92,0.8600094]
[1767860356989,3.87184286,135.96,135.92,0.8600094]
[1767860357694,4.52280839,135.96,135.92,0.8600094]
[1767860358001,3.87184286,135.97,135.93,0.6600094]
[1767860358388,11.32567872,135.97,135.93,0.6600094]
[1767860358593,7.45383586,135.97,135.93,0.6600094]
[1767860358894,4.51728873,135.96,135.93,0.6600094]
[1767860359080,4.51728873,135.96,135.92,0.8600094]
[1767860359683,0.64544587,135.96,135.92,0.8600094]
[1767860359900,4.51728873,135.96,135.92,0.8600094]
[1767860361199,11.87240918,135.96,135.92,0.8600094]
[1767860361427,0.64003605,135.94,135.92,0.2]
[1767860361731,0.65096553,135.95,135.92,0.2]
[1767860362279,4.52280839,135.95,135.92,0.2]
[1767860362481,0.099,135.94,135.92,0.2]
[1767860363083,3.97084286,135.94,135.92,0.2]
[1767860364081,4.31928873,135.93,135.89,0.6600094]
[1767860364490,3.97432732,135.92,135.88,0.8600094]
[1767860365408,11.33165851,135.92,135.88,0.8600094]
[1767860366111,3.87184286,135.91,135.88,0.8600094]
[1767860366720,4.31583911,135.91,135.88,0.8600094]
[1767860367096,3.87184286,135.91,135.88,0.8600094]
[1767860368124,4.31928873,135.91,135.88,0.2]
[1767860368336,3.87184286,135.9,135.88,0.2]
[1767860368825,3.97432732,135.9,135.88,0.2]
[1767860369000,3.87184286,135.89,135.88,0.2]
[1767860369197,4.31583911,135.89,135.85,0.2]
[1767860369429,3.97774244,135.88,135.85,0.2]
[1767860369727,0.10589958,135.88,135.85,0.2]
[1767860370322,7.3576715,135.92,135.87,0.6600094]
[1767860370498,11.32851436,135.92,135.88,0.6600094]
[1767860370700,4.31928873,135.91,135.87,0.6600094]
[1767860370915,0.44744587,135.91,135.87,0.6600094]
[1767860371103,11.32851436,135.92,135.87,0.6600094]
[1767860371602,0.44744587,135.91,135.87,0.6600094]
[1767860372029,0.44744587,135.91,135.87,8.01989619]
[1767860372213,11.68047989,135.92,135.88,0.70504338]
[1767860373827,7.80863703,135.92,135.88,0.70504338]
[1767860374004,11.68047989,135.92,135.88,0.70504338]
[1767860374702,31.81110058,135.94,135.88,0.70504338]
[1767860374703,17.29184286,135.94,135.89,0.70504338]
[1767860374902,24.7472284,135.94,135.89,0.70504338]
[1767860375118,24.7472284,135.94,135.9,0.70504338]
[1767860375912,20.87538554,135.94,135.9,0.70504338]
[1767860376123,4.31928873,135.93,135.88,0.70504338]
[1767860377005,4.31928873,135.93,135.89,0.70504338]
[1767860377695,0.44744587,135.93,135.89,0.70504338]
[1767860377895,4.31928873,135.93,135.89,0.70504338]
[1767860378314,11.67919393,135.94,135.9,0.70504338]
[1767860380544,4.32280839,135.94,135.9,8.06339069]
[1767860380838,25.06829033,135.96,135.9,8.06339069]
[1767860380839,4.32280839,135.97,135.93,0.70504338]
[1767860381029,11.67763789,135.97,135.93,0.70504338]
[1767860381219,7.80579503,135.97,135.93,0.70504338]
[1767860381723,25.73603145,136.0,135.94,0.70504338]
[1767860382039,4.32280839,135.99,135.94,0.70504338]
[1767860382742,0.10248446,135.96,135.91,4.57688624]
[1767860383032,3.87184286,135.95,135.91,0.70504338]
[1767860383436,0.099,135.96,135.92,0.70504338]
[1767860383747,7.45302265,135.98,135.94,0.70504338]
[1767860383921,0.44744587,135.97,135.94,0.70504338]
[1767860385438,7.80498818,135.98,135.94,4.57688624]
[1767860385627,7.80498818,135.98,135.95,0.70504338]
[1767860386342,11.67683104,135.98,135.95,0.70504338]
[1767860387830,21.22466476,135.99,135.95,0.70504338]
[1767860388341,21.22466476,135.99,135.95,4.57688624]
[1767860389847,21.22466476,135.99,135.92,18.39272796]
[1767860389848,18.83142036,136.02,135.98,0.70504338]
[1767860390041,0.45096553,136.02,135.98,0.70504338]
[1767860390227,11.67473875,136.02,135.98,0.70504338]
[1767860390539,0.099,136.01,135.98,0.70504338]
[1767860391523,0.099,136.01,135.96,11.22693328]
[1767860391524,0.099,136.01,135.96,11.93197666]
[1767860392945,0.099,136.01,135.97,11.2263907]
[1767860393951,0.099,136.01,135.97,11.93143408]
[1767860394163,0.45096553,136.02,135.98,4.57688624]
[1767860394458,7.80252671,136.03,135.99,0.70504338]
[1767860395052,0.45096553,136.03,135.99,4.57688624]
[1767860395226,20.86999532,136.04,136.0,0.70504338]
[1767860396226,0.44399625,136.01,135.98,0.70504338]
[1767860396535,4.32280839,136.02,135.98,0.70504338]
[1767860398257,0.45096553,136.02,135.98,0.70504338]
[1767860399033,7.35184489,136.03,135.99,4.57688624]
[1767860399273,7.35184489,136.03,136.0,0.70504338]
[1767860400035,11.32268775,136.03,135.99,0.70504338]
[1767860400236,4.31928873,136.02,135.98,0.70504338]
[1767860400555,4.31928873,136.02,135.96,7.35496935]
[1767860400556,0.10248446,136.01,135.96,6.76799617]
[1767860400855,0.10589958,135.99,135.95,0.70504338]
[1767860401150,0.10589958,135.99,135.95,8.06066073]
[1767860401653,6.51391832,136.0,135.96,0.70504338]
[1767860401955,0.45096553,136.0,135.96,0.70504338]
[1767860402739,13.4,136.02,135.99,0.68406934]
[1767860403249,13.4,136.02,135.99,6.74702213]
[1767860403440,7.80260105,136.03,135.99,6.74702213]
[1767860403639,0.099,136.02,135.99,6.06295279]
[1767860404239,0.099,136.02,135.98,6.06295279]
[1767860404634,0.099,136.02,135.98,13.41692575]
[1767860405048,7.80174471,136.04,135.99,14.13314361]
[1767860405244,0.099,136.03,136.0,6.06295279]
[1767860406256,0.099,136.03,135.98,8.07084237]
[1767860406446,0.44744587,136.02,135.98,13.41686303]
[1767860406645,0.44744587,136.02,135.98,13.35686304]
[1767860407037,0.44744587,136.02,135.98,14.07379517]
[1767860409045,7.35142586,136.03,135.99,0.71693213]
[1767860409444,13.51337865,136.03,135.99,0.71693213]
[1767860410567,0.44399625,136.0,135.96,14.13465452]
[1767860410773,13.86631887,136.01,135.97,0.71693213]
[1767860411061,13.86589495,136.02,135.98,0.71693213]
[1767860411775,7.80294216,136.02,135.98,0.71693213]
[1767860411944,13.86589495,136.02,135.98,0.71693213]
[1767860412470,13.41576362,136.01,135.98,0.71693213]
[1767860412847,7.35281083,136.01,135.98,0.71693213]
[1767860413356,13.41576362,136.01,135.98,0.71693213]
[1767860413556,13.41576362,136.01,135.98,0.65693215]
[1767860413874,13.41541016,136.01,135.98,0.65693215]
[1767860414552,13.57381014,136.01,135.96,6.06295279]
[1767860415775,13.57381014,136.01,135.97,0.71693213]
[1767860417268,7.51085735,136.01,135.97,0.71693213]
[1767860417455,7.35245737,136.01,135.97,0.71693213]
[1767860422852,7.35245737,136.01,135.96,0.71693213]
[1767860422853,0.10307846,136.0,135.96,0.71693213]
[1767860423054,0.50280817,135.99,135.96,0.71693213]
[1767860423278,0.50280817,135.99,135.95,0.71693213]
[1767860423475,7.85630964,135.99,135.95,0.71693213]
[1767860424247,0.50280817,135.99,135.96,0.71693213]
[1767860424480,7.45219347,136.0,135.96,0.71693213]
[1767860424865,7.35319347,136.0,135.96,0.71693213]
[1767860425072,7.35319347,136.0,135.97,0.71693213]
[1767860426869,7.35319347,136.0,135.97,0.65693214]
[1767860427059,7.35319347,136.0,135.97,0.59693215]
[1767860427680,0.50803385,135.99,135.92,13.54216157]
[1767860427881,6.28365511,135.98,135.93,6.06295279]
[1767860428180,31.7984992,136.0,135.94,13.41872927]
[1767860428856,31.7984992,136.0,135.95,6.06295279]
[1767860429058,31.7984992,136.0,135.96,0.71693213]
[1767860429583,32.42414503,136.0,135.96,0.71693213]
[1767860430275,13.52113411,135.99,135.96,0.71693213]
[1767860430480,13.52113411,135.99,135.95,0.71693213]
[1767860432194,13.41686765,135.99,135.95,0.71693213]
[1767860432481,7.35158558,136.03,135.99,0.70447005]
[1767860432787,7.35158558,136.03,136.0,0.70447005]
[1767860433162,7.35081415,136.04,136.01,0.70447005]
[1767860433375,13.4,136.06,136.02,0.70447005]
[1767860433678,8.2183201,136.09,136.05,0.70447005]
[1767860433679,6.08405851,136.09,136.05,0.70447005]
[1767860433983,25.5470113,136.09,136.05,0.64447005]
[1767860434360,32.89532238,136.09,136.05,0.64447005]
[1767860435463,6.684561,136.06,135.98,31.78429976]
[1767860435669,6.23061649,136.05,136.0,6.06295279]
[1767860435860,6.23061649,136.05,136.0,6.76742284]
[1767860436494,7.35077918,136.04,136.0,0.70447005]
[1767860436815,7.96784795,136.04,135.99,6.76742284]
[1767860437161,14.03080074,136.04,135.99,6.76742284]
[1767860438299,6.23511054,136.03,135.98,6.76742284]
[1767860438668,7.5238823,136.03,135.99,6.76742284]
[1767860438870,7.35094249,136.04,135.99,6.76742284]
[1767860439062,7.44994249,136.04,135.99,6.76742284]
[1767860440894,0.099,136.04,135.99,0.70447005]
[1767860441111,0.099,136.04,135.99,14.12079276]
[1767860441404,13.41319167,136.05,136.0,0.70447005]
[1767860441899,13.51219167,136.05,136.0,0.70447005]
[1767860442504,13.41400541,136.04,136.0,0.70447005]
[1767860444797,13.41319167,136.05,136.01,0.70447005]
[1767860445997,7.35023888,136.05,136.01,0.70447005]
[1767860446173,14.0982375,136.05,136.01,0.70447005]
[1767860446373,13.41319167,136.05,136.01,0.70447005]
[1767860447095,7.35023888,136.05,136.01,0.70447005]
[1767860448293,13.41319167,136.05,136.01,0.70447005]
[1767860448497,0.10486046,136.03,135.99,0.70447005]
[1767860448674,7.45640269,136.03,135.99,0.70447005]
[1767860449109,13.51935548,136.03,135.99,0.70447005]
[1767860449486,6.06295279,136.02,135.99,0.70447005]
[1767860450275,6.74219676,136.02,135.99,0.70447005]
[1767860450473,8.03147211,136.02,135.99,0.70447005]
[1767860450681,14.0944249,136.02,135.97,14.1218651]
[1767860450879,14.0944249,136.02,135.97,6.76742284]
[1767860451085,13.41518093,136.02,135.97,0.70447005]
[1767860451286,6.06295279,136.01,135.97,0.70447005]
[1767860453600,13.41589396,136.0,135.97,0.70447005]
[1767860453909,13.38589396,136.0,135.97,0.70447005]
[1767860454197,6.06295279,135.99,135.95,0.70447005]
[1767860454499,6.06295279,135.98,135.95,0.70447005]
[1767860455608,13.41740854,135.98,135.95,0.70447005]
[1767860456178,7.35445575,135.98,135.95,0.70447005]
[1767860456378,13.41740854,135.98,135.95,0.70447005]
[1767860458892,18.38235294,136.0,135.95,0.70447005]
[1767860459097,6.06295279,136.0,135.96,0.70447005]
[1767860459324,6.74799862,136.0,135.96,0.70447005]
[1767860459491,7.35348187,135.99,135.96,0.70447005]
[1767860460000,13.41643466,135.99,135.96,0.70447005]
[1767860461700,13.52129512,135.99,135.95,0.70447005]
[1767860462082,31.9049998,135.99,135.95,0.70447005]
[1767860462386,6.73326089,135.98,135.94,0.68964686]
[1767860462591,0.66479953,135.96,135.92,0.68964686]
[1767860463198,3.88292231,135.97,135.92,0.68964686]
[1767860463590,4.00495401,135.97,135.92,0.68964686]
[1767860464688,3.88292231,135.94,135.91,0.65820934]
[1767860465101,4.53981866,135.94,135.91,0.65820934]
[1767860465807,4.53981866,135.94,135.89,0.65820934]
[1767860466007,4.53981866,135.94,135.89,8.01703826]
[1767860466188,4.53981866,135.94,135.9,0.65820934]
[1767860466394,0.65689635,135.94,135.9,0.65820934]
[1767860466705,8.01311416,135.94,135.9,0.65820934]
[1767860468304,8.01311416,135.94,135.9,4.54113165]
[1767860470815,8.01311416,135.94,135.9,0.65820934]
[1767860471111,8.01311416,135.94,135.9,4.54113165]
[1767860472609,7.35621781,135.94,135.9,0.65820934]
[1767860472794,7.35621781,135.94,135.91,0.65820934]
[1767860476424,11.23914012,135.94,135.91,0.65820934]
[1767860477410,7.35621781,135.94,135.91,0.65820934]
[1767860477609,7.47824951,135.94,135.91,0.65820934]
[1767860478112,11.36117182,135.94,135.91,0.65820934]
[1767860478701,7.35621781,135.94,135.91,0.65820934]
[1767860478901,11.23914012,135.94,135.91,0.65820934]
[1767860479923,7.35621781,135.94,135.91,0.65820934]
[1767860484914,7.35589026,135.95,135.92,0.65820934]
[1767860485210,4.55062345,135.99,135.95,0.65820934]
[1767860485716,8.02087274,136.0,135.96,0.65820934]
[1767860485921,7.3531716,136.0,135.97,0.65820934]
[1767860486626,7.35260937,136.01,135.98,0.65820934]
[1767860486934,7.47464107,136.01,135.98,0.65820934]
[1767860487305,7.35260937,136.01,135.98,0.65820934]
[1767860488340,11.23553168,136.01,135.98,0.65820934]
[1767860488626,4.54516676,136.0,135.93,0.65820934]
[1767860488806,4.54516676,136.0,135.96,0.65820934]
[1767860489138,3.88292231,136.0,135.96,0.65820934]
[1767860489702,30.28423421,136.01,135.96,0.65820934]
[1767860493726,8.01572632,135.99,135.96,0.65820934]
[1767860493933,8.01572632,135.99,135.92,18.67685207]
[1767860493934,11.89864863,135.99,135.95,0.67253499]
[1767860494129,3.88292231,135.98,135.95,0.67253499]
[1767860494542,0.65165467,135.95,135.91,0.67253499]
[1767860494757,3.88292231,135.94,135.91,0.67253499]
[1767860495046,4.53457698,135.95,135.91,0.67253499]
[1767860495844,7.35618655,135.94,135.91,0.67253499]
[1767860497912,7.35527396,135.96,135.92,0.67253499]
[1767860498116,7.35527396,135.96,135.93,0.67253499]
[1767860498913,7.35527396,135.96,135.94,0.67253499]
[1767860509223,7.35527396,135.96,135.92,0.67253499]
[1767860509845,0.12461392,135.95,135.92,0.67253499]
[1767860510049,4.00753623,135.95,135.92,0.67253499]
[1767860511640,4.54261036,135.94,135.91,0.67253499]
[1767860512323,4.54261036,135.94,135.89,0.67253499]
[1767860512324,7.35672772,135.93,135.89,0.67253499]
[1767860512526,7.48669238,135.93,135.89,0.67253499]
[1767860515052,11.36961469,135.93,135.89,0.67253499]
[1767860516746,0.65439082,135.92,135.89,0.67253499]
[1767860518048,8.0120256,135.92,135.89,0.67253499]
[1767860520768,22.27474162,135.93,135.9,0.67253499]
[1767860520769,7.35713021,135.93,135.9,0.67253499]
[1767860520938,7.35644924,135.94,135.91,0.67253499]
[1767860521131,7.35583333,135.95,135.92,0.67253499]
[1767860523264,11.35791018,135.95,135.92,0.67253499]
[1767860523435,0.12461392,135.93,135.9,0.72134089]
[1767860523638,4.00753623,135.93,135.9,0.72134089]
[1767860524053,0.12461392,135.93,135.9,0.72134089]
[1767860524390,7.48163369,135.93,135.9,0.72134089]
[1767860526462,7.35781031,135.91,135.88,0.72134089]
[1767860531975,14.08752482,135.92,135.88,0.72134089]
[1767860532177,8.01718165,135.92,135.88,0.72134089]
[1767860532472,8.01718165,135.92,135.89,0.72134089]
[1767860534874,0.65439082,135.9,135.87,0.72134089]
[1767860535370,0.099,135.9,135.86,0.72134089]
[1767860535573,0.10486046,135.88,135.85,0.92134089]
[1767860536166,14.12031875,135.89,135.85,0.92134089]
[1767860536356,8.04997558,135.89,135.85,0.92134089]
[1767860536557,8.04997558,135.89,135.86,0.72134089]
[1767860536958,14.11968294,135.9,135.86,0.72134089]
[1767860537159,8.04933977,135.9,135.86,0.72134089]
[1767860537655,14.11968294,135.9,135.86,0.72134089]
[1767860540578,8.04933977,135.9,135.86,0.72134089]
[1767860540780,7.35837428,135.9,135.86,0.72134089]
[1767860541077,27.53935543,135.91,135.87,0.72134089]
[1767860542183,13.52822908,135.9,135.86,0.72134089]
[1767860542676,0.68504583,135.89,135.86,0.72134089]
[1767860542868,6.755389,135.89,135.86,0.72134089]
[1767860543259,6.07034317,135.88,135.85,0.92134089]
[1767860543462,6.17520363,135.88,135.85,0.92134089]
[1767860543659,6.07034317,135.88,135.85,0.92134089]
[1767860544359,13.52891242,135.88,135.85,0.92134089]
[1767860545377,0.099,135.85,135.82,0.2]
[1767860545558,6.07034317,135.84,135.82,0.2]
[1767860545758,0.58018537,135.84,135.82,0.2]
[1767860546476,7.94229034,135.84,135.82,0.2]
[1767860546859,7.36210497,135.84,135.82,0.2]
[1767860549781,14.01263351,135.84,135.81,0.2]
[1767860549983,7.9471508,135.84,135.81,0.2]
[1767860550183,6.07034317,135.83,135.81,0.2]
[1767860550379,6.16934317,135.83,135.8,0.2]
[1767860550557,25.76610968,135.84,135.81,0.72134089]
[1767860550763,13.43244814,135.84,135.81,0.72134089]
[1767860551170,13.53144814,135.84,135.81,0.72134089]
[1767860551862,6.07034317,135.83,135.8,0.2]
[1767860552475,6.07034317,135.83,135.8,0.90942784]
[1767860552676,25.86510968,135.84,135.8,0.90942784]
[1767860552871,6.07034317,135.83,135.8,0.90942784]